bitfinex-derivatives/quotes_BTCF0:USTF0_20250503
["timestamp","ask_amount","ask_price","bid_price","bid_amount"]
[1746285390889,0.0353,96456.0,96455.0,1.0845535]
[1746285391594,0.0353,96456.0,96455.0,1.0520535]
[1746285392990,0.0353,96456.0,96455.0,1.1146535]
[1746285394203,0.0353,96456.0,96455.0,1.0827535]
[1746285394406,0.0685,96456.0,96455.0,1.0827535]
[1746285397298,0.0685,96456.0,96455.0,1.29347504]
[1746285399697,0.0685,96456.0,96455.0,1.26207504]
[1746285400497,0.0685,96456.0,96455.0,1.0513535]
[1746285401407,0.0685,96456.0,96455.0,0.6905535]
[1746285401702,0.0685,96456.0,96455.0,1.0513535]
[1746285414109,0.0685,96456.0,96455.0,0.9333535]
[1746285422309,0.0665,96456.0,96455.0,0.9333535]
[1746285422500,0.0655,96456.0,96455.0,0.9333535]
[1746285422700,0.0665,96456.0,96455.0,0.9333535]
[1746285423313,0.0655,96456.0,96455.0,0.9333535]
[1746285423506,0.0665,96456.0,96455.0,0.5725535]
[1746285423714,0.0665,96456.0,96455.0,0.9333535]
[1746285424016,0.0665,96456.0,96455.0,0.5725535]
[1746285424513,0.0665,96456.0,96455.0,0.9333535]
[1746285425512,0.2737965,96456.0,96455.0,0.7260548]
[1746285426205,0.3917965,96456.0,96455.0,0.9333535]
[1746285428115,0.2737965,96456.0,96455.0,0.9333535]
[1746285430315,0.0665,96456.0,96455.0,0.9333535]
[1746285430819,0.0991,96456.0,96455.0,1.14413094]
[1746285431117,0.0991,96456.0,96455.0,1.08153094]
[1746285439143,0.0991,96456.0,96455.0,0.8707535]
[1746285440136,0.1011,96456.0,96455.0,0.8707535]
[1746285443135,0.3083965,96456.0,96455.0,0.8707535]
[1746285443640,0.3083965,96456.0,96455.0,0.6634548]
[1746285444838,0.3083965,96456.0,96455.0,0.8707535]
[1746285445926,0.3083965,96456.0,96455.0,0.6634548]
[1746285446130,0.3083965,96456.0,96455.0,0.8707535]
[1746285446625,0.3083965,96456.0,96455.0,0.5099535]
[1746285447139,0.3083965,96456.0,96455.0,0.72073094]
[1746285451135,0.3083965,96456.0,96455.0,0.5099535]
[1746285454151,0.3083965,96456.0,96455.0,0.3026548]
[1746285456243,0.4263965,96456.0,96455.0,0.3026548]
[1746285459246,0.3083965,96456.0,96455.0,0.3026548]
[1746285460046,0.4263965,96456.0,96455.0,0.3026548]
[1746285461153,0.3083965,96456.0,96455.0,0.3026548]
[1746285461952,0.3083965,96456.0,96455.0,0.0526548]
[1746285463956,0.3083965,96456.0,96455.0,0.21070498]
[1746285466355,0.3083965,96456.0,96455.0,0.23070498]
[1746285468159,0.3083965,96456.0,96455.0,0.0726548]
[1746285473853,0.3083965,96456.0,96455.0,0.0526548]
[1746285478862,0.2073073,96451.0,96450.0,0.15805018]
[1746285479062,0.2073073,96451.0,96450.0,0.19028921]
[1746285479261,0.3453073,96451.0,96450.0,0.19028921]
[1746285479765,0.4074073,96451.0,96450.0,0.19028921]
[1746285480168,0.4084073,96451.0,96450.0,0.19028921]
[1746285480873,0.79946048,96451.0,96450.0,0.19028921]
[1746285481168,0.79946048,96451.0,96450.0,0.19817695]
[1746285482268,0.79946048,96451.0,96450.0,0.16593792]
[1746285482464,0.79946048,96451.0,96450.0,0.19675836]
[1746285482657,0.80046048,96451.0,96450.0,0.19675836]
[1746285482859,0.80046048,96451.0,96450.0,0.03870818]
[1746285483062,0.2073116,96449.0,96448.0,0.07402]
[1746285483572,0.2073245,96443.0,96442.0,0.13901523]
[1746285483963,0.2073245,96443.0,96442.0,0.19901523]
[1746285484162,0.2073245,96443.0,96442.0,0.23101523]
[1746285484367,0.0518279,96449.0,96446.0,0.2591427]
[1746285484368,0.2073159,96447.0,96446.0,0.2591427]
[1746285484569,0.2073159,96447.0,96446.0,0.4239427]
[1746285484771,0.2073159,96447.0,96446.0,0.4564427]
[1746285484970,0.2073159,96447.0,96446.0,0.4369096]
[1746285485171,0.2073159,96447.0,96446.0,0.5549096]
[1746285487770,0.2073159,96447.0,96446.0,0.3475959]
[1746285491675,0.2073159,96447.0,96446.0,0.5549139]
[1746285494274,0.2375159,96447.0,96446.0,0.5549139]
[1746285498782,0.2385159,96447.0,96446.0,0.5549139]
[1746285498990,0.2395159,96447.0,96446.0,0.5549139]
[1746285502285,0.2395159,96447.0,96446.0,0.4369139]
[1746285504381,0.2395159,96447.0,96446.0,0.4044139]
[1746285504772,0.2727159,96447.0,96446.0,0.4044139]
[1746285505982,0.2727159,96447.0,96446.0,0.3716139]
[1746285511587,0.2727159,96447.0,96446.0,0.3396139]
[1746285511981,0.2727159,96447.0,96446.0,0.1322959]
[1746285512181,0.6335159,96447.0,96446.0,0.1322959]
[1746285512386,0.6335159,96447.0,96446.0,0.0322959]
[1746285512690,0.207318,96446.0,96445.0,0.15805018]
[1746285512985,0.240118,96446.0,96445.0,0.15805018]
[1746285513187,0.272618,96446.0,96445.0,0.15805018]
[1746285513892,0.2073202,96445.0,96444.0,0.15805018]
[1746285514380,0.2700202,96445.0,96444.0,0.18989143]
[1746285515287,0.3880202,96445.0,96444.0,0.18989143]
[1746285515480,0.3890202,96445.0,96444.0,0.18989143]
[1746285515981,0.3890202,96445.0,96444.0,0.39721373]
[1746285517486,0.3890202,96445.0,96444.0,0.40721373]
[1746285518780,0.3890202,96445.0,96444.0,0.24916355]
[1746285519692,0.3890202,96445.0,96444.0,0.04184125]
[1746285519991,0.3890202,96445.0,96444.0,0.03184125]
[1746285520289,0.2073223,96444.0,96443.0,0.36537358]
[1746285520786,0.2707223,96444.0,96443.0,0.36537358]
[1746285521288,0.2707223,96444.0,96443.0,0.15805018]
[1746285522076,0.2707223,96444.0,96443.0,0.18890823]
[1746285522387,0.2707223,96444.0,96441.0,0.19045018]
[1746285522388,0.2073266,96442.0,96441.0,0.19045018]
[1746285522586,0.2073266,96442.0,96441.0,0.23045018]
[1746285526289,0.2073266,96442.0,96441.0,0.28132951]
[1746285526485,0.2073266,96442.0,96441.0,0.24892951]
[1746285526893,0.2073266,96442.0,96441.0,0.25676665]
[1746285530094,0.2073266,96442.0,96441.0,0.21676665]
[1746285530298,0.2073266,96442.0,96441.0,0.22676665]
[1746285530594,0.2173266,96442.0,96441.0,0.21676665]
[1746285530787,0.2073266,96442.0,96441.0,0.22676665]
[1746285532596,0.2073266,96442.0,96441.0,0.06871647]
[1746285533189,0.2073266,96442.0,96441.0,0.27604527]
[1746285533391,0.2073266,96442.0,96441.0,0.30784527]
[1746285534799,0.2073266,96442.0,96441.0,0.10051647]
[1746285535096,0.2083266,96442.0,96441.0,0.30784527]
[1746285535593,0.2093266,96442.0,96441.0,0.30784527]
[1746285536689,0.2093266,96442.0,96441.0,0.10051647]
[1746285538589,0.2103266,96442.0,96441.0,0.10051647]
[1746285538890,0.2113266,96442.0,96441.0,0.10051647]
[1746285542598,0.2113266,96442.0,96441.0,0.30784527]
[1746285557100,0.2103266,96442.0,96441.0,0.30784527]
[1746285557500,0.2103266,96442.0,96441.0,0.10051647]
[1746285558609,0.2103266,96442.0,96441.0,0.30784527]
[1746285561223,0.003,96442.0,96441.0,0.78664527]
[1746285561509,0.2103266,96442.0,96441.0,0.78664527]
[1746285562508,0.2093266,96442.0,96441.0,0.78664527]
[1746285565318,0.002,96442.0,96441.0,0.78664527]
[1746285566715,0.2391266,96442.0,96441.0,0.78664527]
[1746285567317,0.2401266,96442.0,96441.0,0.78664527]
[1746285567918,0.2401266,96442.0,96441.0,0.81704527]
[1746285569122,0.0328,96442.0,96441.0,0.81704527]
[1746285570118,0.2093266,96442.0,96441.0,0.81704527]
[1746285570314,0.0518214,96461.0,96448.0,0.2073137]
[1746285570515,0.07877775,96464.0,96456.0,0.0518237]
[1746285570720,0.25622705,96464.0,96463.0,0.2072815]
[1746285571023,0.04894775,96464.0,96463.0,0.3072815]
[1746285571323,0.2072793,96464.0,96463.0,0.4771009]
[1746285571522,0.2393701,96470.0,96469.0,0.2072686]
[1746285571822,0.2393701,96470.0,96469.0,0.2572686]
[1746285573021,0.2715701,96470.0,96469.0,0.2572686]
[1746285573223,0.2735701,96470.0,96469.0,0.2572686]
[1746285573817,0.3049701,96470.0,96469.0,0.2572686]
[1746285574418,0.3069701,96470.0,96469.0,0.2572686]
[1746285577808,0.3069701,96470.0,96469.0,0.05]
[1746285579625,0.3069701,96470.0,96469.0,0.2572686]
[1746285590026,0.3069701,96470.0,96469.0,0.05]
[1746285591251,0.0518199,96464.0,96457.0,0.259116]
[1746285591531,0.2072922,96458.0,96457.0,0.3572928]
[1746285591726,0.2072965,96456.0,96453.0,0.0626]
[1746285591927,0.2072965,96456.0,96455.0,0.18779133]
[1746285592334,0.2720965,96456.0,96455.0,0.18779133]
[1746285592934,0.2720965,96456.0,96455.0,0.18879133]
[1746285593134,0.2720965,96456.0,96455.0,0.031]
[1746285593737,0.2720965,96456.0,96455.0,0.032]
[1746285596738,0.2820965,96456.0,96455.0,0.002]
[1746285596929,0.2720965,96456.0,96455.0,0.002]
[1746285598332,0.2820965,96456.0,96455.0,0.002]
[1746285598929,0.2720965,96456.0,96455.0,0.002]
[1746285599237,0.2920965,96456.0,96455.0,0.002]
[1746285599538,0.2720965,96456.0,96455.0,0.002]
[1746285600633,0.2720965,96456.0,96455.0,0.022]
[1746285601639,0.2720965,96456.0,96455.0,0.2292987]
[1746285604844,0.2720965,96456.0,96455.0,0.2092987]
[1746285606649,0.2720965,96456.0,96455.0,0.2192987]
[1746285607943,0.2720965,96456.0,96455.0,0.2182987]
[1746285608139,0.2428965,96456.0,96455.0,0.01]
[1746285608341,0.2073051,96452.0,96451.0,0.15784511]
[1746285608544,0.2873051,96452.0,96451.0,0.15784511]
[1746285609041,0.4053051,96452.0,96451.0,0.15784511]
[1746285609244,0.8574051,96452.0,96451.0,0.15784511]
[1746285609749,0.8584051,96452.0,96451.0,0.15784511]
[1746285610748,0.8594051,96452.0,96451.0,0.15784511]
[1746285613650,0.8594051,96452.0,96441.0,0.05871647]
[1746285613651,0.2073266,96442.0,96441.0,0.05871647]
[1746285613851,0.2073417,96435.0,96434.0,0.0601]
[1746285614153,0.2073417,96435.0,96434.0,0.27180656]
[1746285614745,0.2686417,96435.0,96434.0,0.27180656]
[1746285615546,0.2686417,96435.0,96434.0,0.27480656]
[1746285615949,0.2686417,96435.0,96434.0,0.27780656]
[1746285616654,0.2686417,96435.0,96434.0,0.28540236]
[1746285620246,0.2686417,96435.0,96434.0,0.06530236]
[1746285621265,0.2749417,96435.0,96434.0,0.06530236]
[1746285622065,0.2749417,96435.0,96434.0,0.0135958]
[1746285622266,0.2849417,96435.0,96434.0,0.0135958]
[1746285623170,0.4029417,96435.0,96434.0,0.0135958]
[1746285623363,0.4029417,96435.0,96434.0,0.0125958]
[1746285623969,0.4029417,96435.0,96434.0,0.0115958]
[1746285627059,0.7637417,96435.0,96434.0,0.0115958]
[1746285627263,0.4029417,96435.0,96434.0,0.0115958]
[1746285627467,0.7637417,96435.0,96434.0,0.0115958]
[1746285632869,0.7225417,96435.0,96434.0,0.0315958]
[1746285633265,0.6045417,96435.0,96434.0,0.0315958]
[1746285635877,0.2437417,96435.0,96434.0,0.0315958]
[1746285636673,0.2763417,96435.0,96434.0,0.0315958]
[1746285638277,0.2437417,96435.0,96434.0,0.0315958]
[1746285648888,0.2437417,96435.0,96434.0,0.0623958]
[1746285649073,0.3065417,96435.0,96434.0,0.0623958]
[1746285650074,0.3065417,96435.0,96434.0,0.0315958]
[1746285650272,0.3065417,96435.0,96434.0,0.0215958]
[1746285652079,0.4245417,96435.0,96434.0,0.0215958]
[1746285653089,0.3065417,96435.0,96434.0,0.0215958]
[1746285654489,0.3065417,96435.0,96434.0,0.0195958]
[1746285654688,0.3095417,96435.0,96434.0,0.0195958]
[1746285655087,0.3095417,96435.0,96434.0,0.0175958]
[1746285655288,0.3125417,96435.0,96434.0,0.0175958]
[1746285659794,0.3191417,96435.0,96434.0,0.0175958]
[1746285676007,0.2864417,96435.0,96434.0,0.0175958]
[1746285676199,0.2864417,96435.0,96434.0,0.0492958]
[1746285677101,0.2834417,96435.0,96434.0,0.0492958]
[1746285677308,0.2854417,96435.0,96434.0,0.0492958]
[1746285677602,0.2824417,96435.0,96434.0,0.0492958]
[1746285677805,0.2844417,96435.0,96434.0,0.0492958]
[1746285678005,0.2824417,96435.0,96434.0,0.0492958]
[1746285678207,0.2854417,96435.0,96434.0,0.0492958]
[1746285679005,0.2864417,96435.0,96434.0,0.0492958]
[1746285679709,0.2864417,96435.0,96434.0,0.0175958]
[1746285681208,0.2073481,96432.0,96431.0,0.02725484]
[1746285681408,0.2073481,96432.0,96431.0,0.08725484]
[1746285681907,0.2707481,96432.0,96431.0,0.08725484]
[1746285682109,0.2707481,96432.0,96431.0,0.20525484]
[1746285683206,0.2727481,96432.0,96431.0,0.20525484]
[1746285683710,0.2727481,96432.0,96431.0,0.178]
[1746285684901,0.2727481,96432.0,96431.0,0.18589127]
[1746285686009,0.2707481,96432.0,96431.0,0.18589127]
[1746285686212,0.2707481,96432.0,96431.0,0.06789127]
[1746285690812,0.2717481,96432.0,96431.0,0.06789127]
[1746285716124,0.2707481,96432.0,96431.0,0.06789127]
[1746285716327,0.2727481,96432.0,96431.0,0.06789127]
[1746285741650,0.2073567,96428.0,96427.0,0.20658163]
[1746285741849,0.2073567,96428.0,96427.0,0.42658163]
[1746285742240,0.2694567,96428.0,96427.0,0.42658163]
[1746285744255,0.2694567,96428.0,96427.0,0.46372748]
[1746285746745,0.2694567,96428.0,96427.0,0.47156636]
[1746285748653,0.2694567,96428.0,96427.0,0.47234363]
[1746285752753,0.2694567,96428.0,96427.0,0.53534363]
[1746285757650,0.2694567,96428.0,96427.0,0.50284363]
[1746285763762,0.2694567,96428.0,96427.0,0.47234363]
[1746285776865,0.2694567,96428.0,96427.0,0.53294363]
[1746285777060,0.2694567,96428.0,96427.0,0.65094363]
[1746285782371,0.2694567,96428.0,96427.0,0.62084363]
[1746285783169,0.2694567,96428.0,96427.0,0.50284363]
[1746285784278,0.2694567,96428.0,96427.0,0.86364363]
[1746285785280,0.2694567,96428.0,96427.0,0.98164363]
[1746285786182,0.2694567,96428.0,96427.0,0.50284363]
[1746285786372,0.2694567,96428.0,96427.0,0.86364363]
[1746285786573,0.2694567,96428.0,96427.0,0.83314363]
[1746285798605,0.2694567,96428.0,96427.0,1.04399256]
[1746285799906,0.2704567,96428.0,96427.0,1.04399256]
[1746285800404,0.2714567,96428.0,96427.0,1.04399256]
[1746285802394,0.2714567,96428.0,96427.0,0.83314363]
[1746285803197,0.2714567,96428.0,96427.0,0.47234363]
[1746285803506,0.2714567,96428.0,96427.0,0.83314363]
[1746285809007,0.2714567,96428.0,96427.0,0.65379833]
[1746285809307,0.2714567,96428.0,96427.0,0.90314363]
[1746285821810,0.2704567,96428.0,96427.0,0.90314363]
[1746285822111,0.2694567,96428.0,96427.0,0.90314363]
[1746285835924,0.0129,96435.0,96434.0,0.2073438]
[1746285836123,0.0129,96435.0,96434.0,0.5073438]
[1746285836718,0.0129,96435.0,96434.0,0.5690438]
[1746285837025,0.0149,96435.0,96434.0,0.5690438]
[1746285838018,0.0149,96435.0,96434.0,0.5710438]
[1746285838523,0.0129,96435.0,96434.0,0.5710438]
[1746285838715,0.0129,96435.0,96434.0,0.5720438]
[1746285838915,0.0129,96435.0,96434.0,0.9328438]
[1746285839518,0.0461,96435.0,96434.0,0.9328438]
[1746285840312,0.0461,96435.0,96434.0,0.9016438]
[1746285841419,0.0461,96435.0,96434.0,0.9006438]
[1746285844818,0.2534417,96435.0,96434.0,0.9006438]
[1746285845024,0.2851417,96435.0,96434.0,0.9006438]
[1746285848929,0.2851417,96435.0,96434.0,0.8701438]
[1746285849132,0.2851417,96435.0,96434.0,0.6628]
[1746285849436,0.2851417,96435.0,96434.0,0.4528]
[1746285849934,0.2851417,96435.0,96434.0,0.4518]
[1746285850127,0.4031417,96435.0,96434.0,0.4528]
[1746285850434,0.4031417,96435.0,96434.0,0.4518]
[1746285850734,0.4031417,96435.0,96434.0,0.4528]
[1746285851637,0.4031417,96435.0,96434.0,0.6601438]
[1746285853135,0.4031417,96435.0,96434.0,0.5701438]
[1746285853339,0.4031417,96435.0,96434.0,0.5801438]
[1746285853836,0.4031417,96435.0,96434.0,0.3728]
[1746285854633,0.7639417,96435.0,96434.0,0.002]
[1746285854841,0.7739417,96435.0,96434.0,0.002]
[1746285855736,0.7759417,96435.0,96434.0,0.001]
[1746285856639,0.2073481,96432.0,96431.0,0.15813528]
[1746285857343,0.4408481,96432.0,96431.0,0.15813528]
[1746285857541,0.4408481,96432.0,96430.0,0.2073521]
[1746285857542,0.2073503,96431.0,96430.0,0.2073521]
[1746285857737,0.2073503,96431.0,96430.0,0.2573521]
[1746285857937,0.2703503,96431.0,96430.0,0.2573521]
[1746285858241,0.3883503,96431.0,96430.0,0.05]
[1746285858943,0.3893503,96431.0,96430.0,0.05]
[1746285860343,0.3903503,96431.0,96430.0,0.2573524]
[1746285861744,0.3903503,96431.0,96430.0,0.05]
[1746285879549,0.2073567,96428.0,96427.0,0.07618473]
[1746285879753,0.2073567,96428.0,96427.0,0.17618473]
[1746285880453,0.2700567,96428.0,96427.0,0.17618473]
[1746285881756,0.2700567,96428.0,96427.0,0.33432001]
[1746285883054,0.2800567,96428.0,96427.0,0.23432001]
[1746285883264,0.2700567,96428.0,96427.0,0.24432001]
[1746285883662,0.2700567,96428.0,96427.0,0.21312001]
[1746285884156,0.3200567,96428.0,96427.0,0.20312001]
[1746285884358,0.2700567,96428.0,96427.0,0.21312001]
[1746285885365,0.2700567,96428.0,96427.0,0.24392001]
[1746285890664,0.2700567,96428.0,96427.0,0.08578473]
[1746285904476,0.2800567,96428.0,96427.0,0.07578473]
[1746285904775,0.2700567,96428.0,96427.0,0.08578473]
[1746285922483,0.2710567,96428.0,96427.0,0.08578473]
[1746285923687,0.2720567,96428.0,96427.0,0.08578473]
[1746285926992,0.2720567,96428.0,96427.0,0.24409497]
[1746285930588,0.2720567,96428.0,96427.0,0.08578473]
[1746285937495,0.2710567,96428.0,96427.0,0.08578473]
[1746285938291,0.2700567,96428.0,96427.0,0.08578473]
[1746285938796,0.2710567,96428.0,96427.0,0.08578473]
[1746285938995,0.2720567,96428.0,96427.0,0.08578473]
[1746285947001,0.2720567,96428.0,96427.0,0.24397531]
[1746285949506,0.2720567,96428.0,96427.0,0.45133421]
[1746285949694,0.2720567,96428.0,96427.0,0.24397531]
[1746285951005,0.0647,96428.0,96427.0,0.81213421]
[1746285951311,0.2417567,96428.0,96427.0,0.93013421]
[1746285953810,0.2397567,96428.0,96427.0,0.93213421]
[1746285954107,0.2397567,96428.0,96427.0,0.93313421]
[1746285954300,0.2397567,96428.0,96427.0,0.93113421]
[1746285954500,0.2397567,96428.0,96427.0,0.93213421]
[1746285955208,0.2397567,96428.0,96427.0,0.77394363]
[1746285957705,0.2397567,96428.0,96427.0,0.77294363]
[1746285957901,0.2397567,96428.0,96427.0,0.77394363]
[1746285960012,0.2397567,96428.0,96427.0,0.77294363]
[1746285960310,0.2397567,96428.0,96427.0,0.77394363]
[1746285962916,0.2397567,96428.0,96427.0,0.77294363]
[1746285963618,0.2397567,96428.0,96427.0,0.77194363]
[1746285963911,0.2397567,96428.0,96427.0,0.77294363]
[1746285964318,0.2397567,96428.0,96427.0,0.41214363]
[1746285966421,0.2397567,96428.0,96427.0,0.42298788]
[1746285967227,0.2397567,96428.0,96427.0,0.34130465]
[1746285967824,0.2397567,96428.0,96427.0,0.34030465]
[1746285968128,0.2397567,96428.0,96427.0,0.45830465]
[1746285969129,0.2397567,96428.0,96427.0,0.34030465]
[1746285970626,0.2397567,96428.0,96427.0,0.19395144]
[1746285971031,0.2397567,96428.0,96427.0,0.40231034]
[1746285971630,0.2397567,96428.0,96427.0,0.40131034]
[1746285974933,0.2397567,96428.0,96427.0,0.55951058]
[1746285978439,0.2397567,96428.0,96427.0,0.40131034]
[1746285979638,0.2397567,96428.0,96427.0,0.49531034]
[1746285981339,0.2397567,96428.0,96427.0,0.46471034]
[1746285986643,0.2407567,96428.0,96427.0,0.46471034]
[1746285987539,0.2417567,96428.0,96427.0,0.46471034]
[1746285988439,0.0344,96428.0,96427.0,0.46471034]
[1746285989245,0.0344,96428.0,96427.0,0.58271034]
[1746285992349,0.0344,96428.0,96427.0,0.68641433]
[1746285992646,0.0344,96428.0,96427.0,0.89641433]
[1746285996638,0.0344,96428.0,96427.0,1.25721433]
[1746285996949,0.0334,96428.0,96427.0,1.25921433]
[1746285997448,0.0324,96428.0,96427.0,1.25921433]
[1746285997748,0.0324,96428.0,96427.0,1.26121433]
[1746285999748,0.0324,96428.0,96427.0,0.90041433]
[1746286000048,0.0324,96428.0,96427.0,1.26121433]
[1746286003047,0.0324,96428.0,96427.0,1.15751034]
[1746286007639,0.0324,96428.0,96427.0,1.09411034]
[1746286012756,0.0324,96428.0,96427.0,0.73331034]
[1746286012957,0.0324,96428.0,96427.0,1.09411034]
[1746286013354,0.2397567,96428.0,96427.0,0.80411034]
[1746286013655,0.2397567,96428.0,96427.0,0.59675144]
[1746286014150,0.2397567,96428.0,96427.0,0.47875144]
[1746286016052,0.2397567,96428.0,96427.0,0.68611034]
[1746286018960,0.2397567,96428.0,96427.0,0.68411034]
[1746286024252,0.2711567,96428.0,96427.0,0.68411034]
[1746286025063,0.0638,96428.0,96427.0,0.68411034]
[1746286025855,0.0949,96428.0,96427.0,0.68411034]
[1746286026159,0.0949,96428.0,96427.0,0.32331034]
[1746286029166,0.0949,96428.0,96427.0,0.32231034]
[1746286029363,0.0949,96428.0,96427.0,0.32331034]
[1746286029568,0.3022567,96428.0,96427.0,0.32331034]
[1746286034172,0.3022567,96428.0,96427.0,0.32231034]
[1746286034471,0.3022567,96428.0,96427.0,0.32331034]
[1746286034862,0.0949,96428.0,96427.0,0.32331034]
[1746286036067,0.3022567,96428.0,96427.0,0.32331034]
[1746286039276,0.0949,96428.0,96427.0,0.32331034]
[1746286053593,0.3022567,96428.0,96427.0,0.32331034]
[1746286055495,0.0949,96428.0,96427.0,0.32331034]
[1746286060403,0.3022567,96428.0,96427.0,0.32331034]
[1746286065007,0.0949,96428.0,96427.0,0.32331034]
[1746286069208,0.0949,96428.0,96427.0,0.50331034]
[1746286074110,0.0949,96428.0,96427.0,0.7142428]
[1746286075805,0.0635,96428.0,96427.0,0.7142428]
[1746286076209,0.0635,96428.0,96427.0,0.7456428]
[1746286078313,0.0635,96428.0,96427.0,0.53471034]
[1746286083818,0.0635,96428.0,96427.0,0.50331034]
[1746286090220,0.0635,96428.0,96427.0,0.53341034]
[1746286091021,0.0635,96428.0,96427.0,0.50331034]
[1746286094614,0.0635,96428.0,96427.0,0.3593866]
[1746286094813,0.0635,96428.0,96427.0,0.41141165]
[1746286096725,0.0635,96428.0,96427.0,0.77221165]
[1746286097315,0.0635,96428.0,96427.0,0.7798498]
[1746286097727,0.0635,96428.0,96427.0,0.8127498]
[1746286098025,0.0635,96428.0,96427.0,0.8428498]
[1746286098224,0.0635,96428.0,96427.0,0.9608498]
[1746286101837,0.0635,96428.0,96427.0,0.9279498]
[1746286103037,0.0635,96428.0,96427.0,0.8978498]
[1746286104536,0.0635,96428.0,96427.0,1.13898592]
[1746286105039,0.0635,96428.0,96427.0,1.10888592]
[1746286107229,0.0635,96428.0,96427.0,0.99088592]
[1746286110039,0.0635,96428.0,96427.0,0.8420098]
[1746286116233,0.2708567,96428.0,96427.0,0.3738232]
[1746286116433,0.2708567,96428.0,96427.0,0.0616632]
[1746286117035,0.3888567,96428.0,96427.0,0.1316632]
[1746286117240,0.3888567,96428.0,96427.0,0.3390221]
[1746286117745,0.3888567,96428.0,96427.0,0.2690221]
[1746286118248,0.3888567,96428.0,96427.0,0.0616632]
[1746286119649,0.3888567,96428.0,96427.0,0.2690221]
[1746286120044,0.3888567,96428.0,96427.0,0.3490221]
[1746286127746,0.4288567,96428.0,96427.0,0.2690221]
[1746286128442,0.3888567,96428.0,96427.0,0.3390221]
[1746286134761,0.3888567,96428.0,96427.0,0.3380221]
[1746286135067,0.3888567,96428.0,96427.0,0.3370221]
[1746286143161,0.3888567,96428.0,96427.0,0.1296632]
[1746286143963,0.3888567,96428.0,96427.0,0.3370221]
[1746286144159,0.2708567,96428.0,96427.0,0.3370221]
[1746286144965,0.2718567,96428.0,96427.0,0.3370221]
[1746286145164,0.3898567,96428.0,96427.0,0.3370221]
[1746286145365,0.3908567,96428.0,96427.0,0.3370221]
[1746286147165,0.2728567,96428.0,96427.0,0.3370221]
[1746286150366,0.2728567,96428.0,96427.0,0.4953541]
[1746286157872,0.2728567,96428.0,96427.0,0.3370221]
[1746286159469,0.2728567,96428.0,96427.0,0.3671221]
[1746286159669,0.2417567,96428.0,96427.0,0.3977221]
[1746286159865,0.2407567,96428.0,96427.0,0.3977221]
[1746286160065,0.2417567,96428.0,96427.0,0.5157221]
[1746286160673,0.2397567,96428.0,96427.0,0.5157221]
[1746286160876,0.2397567,96428.0,96427.0,0.5167221]
[1746286161277,0.2397567,96428.0,96427.0,0.5177221]
[1746286162380,0.2397567,96428.0,96427.0,0.5167221]
[1746286162677,0.2397567,96428.0,96427.0,0.5177221]
[1746286165775,0.2397567,96428.0,96427.0,0.5167221]
[1746286166676,0.2397567,96428.0,96427.0,0.5177221]
[1746286176088,0.2397567,96428.0,96427.0,0.3997221]
[1746286179992,0.2397567,96428.0,96427.0,0.3691221]
[1746286183192,0.2397567,96428.0,96427.0,0.3390221]
[1746286190098,0.2397567,96428.0,96427.0,0.3380221]
[1746286191995,0.2397567,96428.0,96427.0,0.54913144]
[1746286200507,0.2397567,96428.0,96427.0,0.3380221]
[1746286214711,0.2397567,96428.0,96427.0,0.3370221]
[1746286230936,0.2397567,96428.0,96427.0,0.30224989]
[1746286231437,0.2397567,96428.0,96427.0,0.31015147]
[1746286231835,0.2397567,96428.0,96427.0,0.36171937]
[1746286237432,0.2397567,96428.0,96427.0,0.36271937]
[1746286237940,0.2397567,96428.0,96427.0,0.36171937]
[1746286239045,0.2397567,96428.0,96427.0,0.36271937]
[1746286241246,0.2397567,96428.0,96427.0,0.36171937]
[1746286241445,0.2397567,96428.0,96427.0,0.57282871]
[1746286244540,0.2397567,96428.0,96427.0,0.36171937]
[1746286255954,0.04245242,96445.0,96427.0,0.17946948]
[1746286256166,0.28662052,96446.0,96445.0,0.2073202]
[1746286256346,0.28662052,96446.0,96445.0,0.2673202]
[1746286256655,0.207326,96446.0,96445.0,0.2673202]
[1746286257062,0.207326,96446.0,96445.0,0.3306202]
[1746286257446,0.5681122,96450.0,96449.0,0.2073116]
[1746286257652,0.10556248,96452.0,96451.0,0.2073073]
[1746286257856,0.31286758,96452.0,96451.0,0.2973073]
[1746286258261,0.31286758,96452.0,96451.0,0.3604073]
[1746286259163,0.34476758,96452.0,96451.0,0.3614073]
[1746286260569,0.34476758,96452.0,96451.0,0.3604073]
[1746286260760,0.34476758,96452.0,96451.0,0.3614073]
[1746286261267,0.2392051,96452.0,96451.0,0.3614073]
[1746286261465,0.0319,96452.0,96451.0,0.3614073]
[1746286261667,0.2392051,96452.0,96451.0,0.3614073]
[1746286262065,0.2392051,96452.0,96451.0,0.3604073]
[1746286262468,0.0319,96452.0,96451.0,0.3604073]
[1746286263169,0.0319,96452.0,96451.0,0.4784073]
[1746286263368,0.2392051,96452.0,96451.0,0.4784073]
[1746286263668,0.0319,96452.0,96451.0,0.4784073]
[1746286263867,0.2392051,96452.0,96451.0,0.4784073]
[1746286264068,0.0319,96452.0,96451.0,0.4784073]
[1746286264273,0.0319,96452.0,96451.0,0.4794073]
[1746286264769,0.2392051,96452.0,96451.0,0.4794073]
[1746286265469,0.2392051,96452.0,96451.0,0.4804073]
[1746286266172,0.2392051,96452.0,96451.0,0.3614073]
[1746286266362,0.2392051,96452.0,96451.0,0.3624073]
[1746286267866,0.2712051,96452.0,96451.0,0.3624073]
[1746286268265,0.2712051,96452.0,96451.0,0.3614073]
[1746286268463,0.2712051,96452.0,96451.0,0.3624073]
[1746286270272,0.0639,96452.0,96451.0,0.3624073]
[1746286271873,0.2712051,96452.0,96451.0,0.3624073]
[1746286272875,0.2712051,96452.0,96451.0,0.7232073]
[1746286273360,0.3034051,96452.0,96451.0,0.7232073]
[1746286275070,0.3034051,96452.0,96451.0,0.6921073]
[1746286275275,0.3034051,96452.0,96451.0,0.3313073]
[1746286275476,0.3034051,96452.0,96451.0,0.6921073]
[1746286278980,0.3034051,96452.0,96451.0,0.6601073]
[1746286286083,0.3034051,96452.0,96451.0,0.2993073]
[1746286288681,0.3034051,96452.0,96451.0,0.3321073]
[1746286294895,0.0961,96452.0,96451.0,0.3321073]
[1746286295086,0.0961,96452.0,96451.0,0.3640073]
[1746286295395,0.0961,96452.0,96451.0,0.7248073]
[1746286296686,0.0639,96452.0,96451.0,0.7571073]
[1746286300401,0.2712051,96452.0,96451.0,0.7571073]
[1746286301300,0.0639,96452.0,96451.0,0.7571073]
[1746286303897,0.0639,96452.0,96451.0,0.3963073]
[1746286304099,0.0639,96452.0,96451.0,0.7571073]
[1746286311208,0.0639,96452.0,96451.0,0.8191073]
[1746286314508,0.0639,96452.0,96451.0,0.7868073]
[1746286314709,0.0942,96452.0,96451.0,0.7868073]
[1746286320012,0.3015051,96452.0,96451.0,0.7868073]
[1746286320203,0.3015051,96452.0,96451.0,0.7549073]
[1746286320613,0.3015051,96452.0,96451.0,0.7221073]
[1746286327016,0.207318,96446.0,96445.0,0.26223211]